bitfinex/quotes_SOLUSD_20250131
["timestamp","ask_amount","ask_price","bid_price","bid_amount"]
[1738328836174,30.0,241.79,241.72,0.063]
[1738328836379,30.0,241.75,241.72,0.063]
[1738328843779,1.6148,241.82,241.72,0.063]
[1738328843991,2.6148,241.82,241.72,0.063]
[1738328844721,30.0,241.74,241.72,0.063]
[1738328846485,1.0,241.8,241.72,0.063]
[1738328847779,1.0,241.76,241.72,0.063]
[1738328847982,1.0,241.76,241.71,0.063]
[1738328847983,1.0,241.7,241.58,0.063]
[1738328849193,2.0,241.7,241.58,0.063]
[1738328849584,20.0,241.66,241.58,0.063]
[1738328849792,1.5275,241.65,241.58,0.063]
[1738328850571,20.0,241.61,241.58,0.063]
[1738328851589,30.0,241.6,241.58,0.063]
[1738328853879,30.0,241.6,241.58,7.95291873]
[1738328854097,30.0,241.6,241.59,7.88991873]
[1738328854294,1.5275,241.65,241.58,0.063]
[1738328856992,20.0,241.69,241.58,12.40529179]
[1738328857186,1.5999,241.7,241.61,12.34229179]
[1738328857506,1.5999,241.7,241.62,12.34229179]
[1738328857712,1.5999,241.7,241.61,12.34229179]
[1738328858211,1.5999,241.7,241.58,13.47484853]
[1738328858586,1.5999,241.7,241.6,12.34229179]
[1738328858915,1.5999,241.7,241.62,12.34229179]
[1738328859390,1.5999,241.7,241.58,0.063]
[1738328859589,2.5999,241.7,241.58,0.063]
[1738328860005,1.5999,241.7,241.58,0.063]
[1738328860591,2.5999,241.7,241.58,0.063]
[1738328860792,30.0,241.63,241.58,0.063]
[1738328861597,20.0,241.6,241.58,0.063]
[1738328864205,30.0,241.63,241.58,0.063]
[1738328864396,30.0,241.59,241.58,0.063]
[1738328865519,1.0,241.69,241.58,0.063]
[1738328865712,1.5999,241.7,241.58,0.063]
[1738328865713,1.5999,241.7,241.6,12.34229179]
[1738328865906,1.5999,241.7,241.61,12.34229179]
[1738328866429,1.5999,241.7,241.58,0.063]
[1738328866637,1.0,241.68,241.58,0.063]
[1738328866799,2.0,241.68,241.58,0.063]
[1738328867129,20.0,241.59,241.58,0.063]
[1738328868125,50.0,241.59,241.58,0.063]
[1738328868426,2.0,241.69,241.58,0.063]
[1738328868639,1.0,241.67,241.58,0.063]
[1738328869335,30.0,241.59,241.58,0.063]
[1738328870305,1.0,241.64,241.58,0.063]
[1738328871200,30.0,241.59,241.58,0.063]
[1738328874823,20.0,241.59,241.58,0.063]
[1738328877726,50.0,241.59,241.58,0.063]
[1738328878415,20.0,241.66,241.58,0.063]
[1738328880634,20.0,241.66,241.58,0.063]
[1738328882435,1.5999,241.7,241.58,25.81714032]
[1738328882731,1.5999,241.7,241.61,12.34229179]
[1738328883423,1.5999,241.7,241.6,12.34229179]
[1738328884316,1.5999,241.7,241.6,13.41184853]
[1738328884833,1.5999,241.7,241.58,0.063]
[1738328885412,1.5999,241.7,241.6,12.34229179]
[1738328885736,1.5999,241.7,241.58,13.47484853]
[1738328887229,1.5999,241.7,241.59,12.34229179]
[1738328887435,1.5999,241.7,241.61,12.34229179]
[1738328887631,0.03,241.71,241.63,12.34229179]
[1738328887831,0.03,241.71,241.64,13.41184853]
[1738328888136,0.03,241.71,241.61,13.41184853]
[1738328888450,0.03,241.71,241.6,25.75414032]
[1738328892137,0.03,241.71,241.63,13.41184853]
[1738328892721,0.03,241.71,241.61,12.34229179]
[1738328893147,0.03,241.71,241.6,13.41184853]
[1738328893629,0.03,241.71,241.6,25.75414032]
[1738328894045,0.03,241.71,241.6,13.41184853]
[1738328894416,0.03,241.71,241.59,13.41184853]
[1738328895141,0.03,241.71,241.61,12.34229179]
[1738328895443,0.03,241.71,241.65,12.34229179]
[1738328895831,0.03,241.71,241.66,13.41184853]
[1738328896748,0.03,241.71,241.65,13.41184853]
[1738328897039,0.03,241.71,241.6,13.41184853]
[1738328897446,0.03,241.71,241.59,13.41184853]
[1738328898123,0.03,241.71,241.58,13.47484853]
[1738328898534,0.03,241.71,241.58,0.063]
[1738328899434,30.0,241.66,241.58,0.063]
[1738328899839,30.0,241.66,241.58,12.40529179]
[1738328900039,30.0,241.66,241.61,13.41184853]
[1738328900432,0.03,241.71,241.61,13.41184853]
[1738328900631,0.03,241.71,241.58,12.40529179]
[1738328902238,1.0,241.67,241.58,0.063]
[1738328902639,20.0,241.61,241.58,0.063]
[1738328903552,30.0,241.6,241.58,0.063]
[1738328905950,1.5876,241.59,241.58,0.063]
[1738328906251,20.0,241.56,241.51,0.063]
[1738328907141,30.0,241.55,241.51,0.063]
[1738328907547,30.0,241.55,241.52,12.34229179]
[1738328907862,1.5448,241.64,241.55,13.41184853]
[1738328908060,21.5448,241.64,241.54,12.34229179]
[1738328911260,21.5448,241.64,241.55,13.41184853]
[1738328911444,21.5448,241.64,241.56,12.34229179]
[1738328911645,21.5448,241.64,241.55,13.41184853]
[1738328913557,21.5448,241.64,241.52,12.34229179]
[1738328914140,21.5448,241.64,241.51,13.47484853]
[1738328914660,30.0,241.58,241.51,13.47484853]
[1738328914835,30.0,241.58,241.51,0.063]
[1738328915036,21.5448,241.64,241.51,0.063]
[1738328915236,1.0,241.62,241.51,0.063]
[1738328915843,1.0,241.62,241.55,0.063]
[1738328916043,30.0,241.57,241.55,0.063]
[1738328917666,20.0,241.54,241.51,0.063]
[1738328917848,30.0,241.53,241.51,0.063]
[1738328918757,20.0,241.5,241.49,0.063]
[1738328918968,50.0,241.5,241.49,0.063]
[1738328921955,30.0,241.5,241.49,0.063]
[1738328924162,30.0,241.5,241.49,12.40529179]
[1738328924790,30.0,241.5,241.49,0.063]
[1738328925086,30.0,241.5,241.49,25.81714032]
[1738328925385,30.0,241.52,241.49,25.81714032]
[1738328925545,30.0,241.52,241.49,12.40529179]
[1738328925744,30.0,241.52,241.49,0.063]
[1738328926346,1.0,241.58,241.49,0.063]
[1738328927371,1.5305,241.57,241.49,0.063]
[1738328928166,2.5305,241.57,241.49,0.063]
[1738328928745,30.0,241.5,241.49,0.063]
[1738328930977,1.0,241.55,241.49,0.063]
[1738328931985,2.02861345,241.55,241.49,0.063]
[1738328933881,30.0,241.5,241.49,0.063]
[1738328937479,30.0,241.5,241.49,25.81714032]
[1738328937677,1.0396378,241.61,241.49,25.81714032]
[1738328937996,3.56833253,241.62,241.52,12.34229179]
[1738328938175,3.56833253,241.62,241.5,12.34229179]
[1738328938492,20.0,241.6,241.5,12.34229179]
[1738328939081,24.6054839,241.62,241.5,12.34229179]
[1738328940193,0.03,241.6,241.5,12.34229179]
[1738328941301,21.0,241.59,241.49,0.063]
[1738328941504,30.0,241.52,241.49,0.063]
[1738328942370,30.0,241.52,241.5,12.34229179]
[1738328942671,0.03,241.6,241.5,12.34229179]
[1738328942871,0.03,241.6,241.52,12.34229179]
[1738328944293,0.03,241.6,241.5,12.34229179]
[1738328947401,0.03,241.6,241.49,0.063]
[1738328947402,0.03,241.6,241.54,12.34229179]
[1738328947693,0.03,241.6,241.58,12.34229179]
[1738328947988,0.03,241.6,241.56,12.34229179]
[1738328948167,0.03,241.6,241.54,12.34229179]
[1738328948495,0.03,241.6,241.55,13.41184853]
[1738328949819,0.03,241.6,241.58,12.34229179]
[1738328951177,0.03,241.6,241.59,13.41184853]
[1738328951793,0.03,241.6,241.59,12.34229179]
[1738328957501,0.03,241.6,241.57,25.75414032]
[1738328957802,0.03,241.6,241.57,13.41184853]
[1738328957990,0.03,241.6,241.59,12.34229179]
[1738328958194,0.03,241.6,241.57,25.75414032]
[1738328959111,0.03,241.6,241.58,13.41184853]
[1738328959311,0.03,241.6,241.55,12.34229179]
[1738328959616,0.03,241.6,241.55,13.41184853]
[1738328960615,0.03,241.6,241.57,13.41184853]
[1738328960823,0.03,241.6,241.57,25.75414032]
[1738328961780,0.03,241.6,241.57,13.41184853]
[1738328961985,0.03,241.6,241.55,12.34229179]
[1738328963408,0.03,241.6,241.56,13.41184853]
[1738328964842,0.03,241.6,241.56,12.34229179]
[1738328965116,0.03,241.6,241.56,13.41184853]
[1738328966612,0.03,241.6,241.54,12.34229179]
[1738328967194,0.03,241.6,241.56,13.41184853]
[1738328968090,0.03,241.6,241.56,25.75414032]
[1738328968310,0.03,241.6,241.56,12.34229179]
[1738328969420,0.03,241.6,241.56,13.41184853]
[1738328970521,0.03,241.6,241.56,7.89921619]
[1738328974538,0.03,241.6,241.59,13.41184853]
[1738328975509,0.03,241.6,241.58,7.89921619]
[1738328975822,0.03,241.6,241.59,13.41184853]
[1738328976433,0.03,241.6,241.56,7.89921619]
[1738328978126,0.03,241.6,241.55,13.41184853]
[1738328978633,0.03,241.6,241.55,17.54884853]
[1738328980815,0.03,241.6,241.55,25.44806472]
[1738328983241,2.86,241.73,241.57,1.0]
[1738328983547,20.0,241.7,241.58,4.137]
[1738328984148,20.0,241.7,241.6,1.0]
[1738328984329,20.0,241.7,241.58,6.137]
[1738328984835,20.0,241.7,241.6,2.0]
[1738328985047,20.0,241.7,241.62,1.0]
[1738328985415,4.03223845,241.72,241.62,1.0]
[1738328985645,4.03223845,241.72,241.6,1.0]
[1738328985646,20.0,241.71,241.6,2.0]
[1738328986249,1.5153,241.7,241.6,2.0]
[1738328987235,20.0,241.69,241.6,2.0]
[1738328987440,20.0,241.69,241.6,1.0]
[1738328987935,20.0,241.69,241.62,1.0]
[1738328990218,20.0,241.69,241.61,1.0]
[1738328991636,0.03,241.7,241.66,1.0]
[1738328991829,0.03,241.7,241.68,1.0]
[1738328998037,0.03,241.7,241.61,1.0]
[1738328999547,0.03,241.7,241.59,1.0]
[1738328999937,0.03,241.7,241.63,1.0]
[1738329000438,0.03,241.7,241.62,1.0]
[1738329000753,0.03,241.7,241.59,2.0]
[1738329001552,0.03,241.7,241.63,1.0]
[1738329002143,0.03,241.7,241.61,1.0]
[1738329002446,0.03,241.7,241.59,1.0]
[1738329002635,21.6135,241.69,241.57,5.137]
[1738329002836,20.0,241.67,241.57,5.137]
[1738329003147,20.0,241.67,241.56,4.137]
[1738329003340,20.0,241.68,241.58,1.0]
[1738329003526,20.0,241.68,241.59,4.137]
[1738329004755,20.0,241.68,241.56,4.137]
[1738329005055,20.0,241.68,241.58,1.0]
[1738329006441,20.0,241.68,241.59,1.0]
[1738329007030,1.05764051,241.68,241.59,1.0]
[1738329007238,20.0,241.68,241.59,1.0]
[1738329007438,20.0,241.68,241.6,1.0]
[1738329011560,20.0,241.68,241.58,1.063]
[1738329011740,20.0,241.68,241.58,0.063]
[1738329013481,20.0,241.67,241.58,0.063]
[1738329014075,4.03223845,241.67,241.58,0.063]
[1738329014652,13.41184853,241.66,241.58,0.063]
[1738329014850,20.0,241.63,241.58,0.063]
[1738329015571,17.44408698,241.66,241.58,0.063]
[1738329015862,20.0,241.59,241.51,0.063]
[1738329016457,20.0,241.58,241.51,0.063]
[1738329019074,20.0,241.57,241.51,0.063]
[1738329020180,20.0,241.56,241.51,0.063]
[1738329027586,1.04819326,241.59,241.51,1.063]
[1738329027880,1.6046,241.6,241.51,0.063]
[1738329028486,21.6046,241.6,241.51,0.063]
[1738329030681,22.66242777,241.6,241.51,0.063]
[1738329030883,20.0,241.56,241.51,0.063]
[1738329031472,6.69466622,241.6,241.51,0.063]
[1738329031669,20.0,241.59,241.51,0.063]
[1738329032279,6.69466622,241.6,241.51,0.063]
[1738329032581,5.09006622,241.6,241.53,1.0]
[1738329032777,1.05782777,241.6,241.53,2.0]
[1738329032982,1.657723,241.61,241.53,2.0]
[1738329033284,1.657723,241.61,241.53,1.0]
[1738329033676,1.657723,241.61,241.55,1.0]
[1738329034462,4.03223845,241.67,241.59,1.0]
[1738329034765,80.20329551,241.84,241.59,1.0]
[1738329034766,1.657723,241.65,241.59,1.0]
[1738329035579,1.06049638,241.7,241.59,1.0]
[1738329035973,8.95971238,241.7,241.59,1.0]
[1738329036178,20.0,241.67,241.59,1.0]
[1738329036768,20.0,241.67,241.57,1.0]
[1738329037589,20.0,241.67,241.59,1.0]
[1738329037886,20.0,241.67,241.58,1.0]
[1738329039790,20.0,241.67,241.56,1.0]
[1738329040576,20.0,241.67,241.58,1.0]
[1738329040783,13.41184853,241.66,241.54,1.0]
[1738329040986,20.0,241.63,241.56,1.0]
[1738329041487,24.03223845,241.67,241.56,1.0]
[1738329042078,20.0,241.63,241.56,1.0]
[1738329043590,4.03223845,241.67,241.6,1.0]
[1738329043775,8.95971238,241.7,241.64,1.0]
[1738329045076,20.0,241.67,241.64,1.0]
[1738329046478,20.0,241.67,241.62,1.0]
[1738329049089,20.0,241.67,241.61,6.5207]
[1738329050379,20.0,241.63,241.56,2.0]
[1738329050587,20.0,241.63,241.57,1.0]
[1738329050805,20.0,241.63,241.59,1.0]
[1738329051491,20.0,241.63,241.56,1.0]
[1738329051678,20.0,241.63,241.57,1.0]
[1738329051996,20.0,241.63,241.56,1.0]
[1738329052198,20.0,241.63,241.56,2.0]
[1738329052799,20.0,241.63,241.59,1.0]
[1738329053296,21.0487345,241.63,241.59,1.0]
[1738329055189,20.0,241.67,241.59,1.0]
[1738329056200,20.0,241.67,241.59,2.0]
[1738329056386,20.0,241.67,241.59,1.0]
[1738329056801,20.0,241.67,241.59,2.0]
[1738329057005,20.0,241.67,241.61,1.0]
[1738329057680,20.03,241.67,241.61,1.0]
[1738329058984,20.03,241.67,241.64,1.0]
[1738329060306,20.03,241.67,241.62,1.0]
[1738329060902,20.03,241.67,241.64,1.0]
[1738329062810,20.03,241.67,241.62,1.0]
[1738329063391,20.03,241.67,241.64,1.0]
[1738329064507,0.03,241.67,241.66,1.0]
[1738329068099,0.03,241.67,241.65,6.0061]
[1738329068490,0.03,241.67,241.63,1.0]
[1738329068716,0.03,241.67,241.61,1.0]
[1738329070705,20.0,241.64,241.61,1.0]
[1738329072117,20.0,241.64,241.63,1.0]
[1738329072314,20.0,241.64,241.61,1.0]
[1738329072617,20.0,241.64,241.63,1.0]
[1738329074217,20.0,241.64,241.61,1.0]
[1738329076128,20.0,241.64,241.59,1.0]
[1738329076422,20.0,241.64,241.62,1.0]
[1738329078317,20.0,241.64,241.61,1.0]
[1738329078516,20.0,241.64,241.62,1.0]
[1738329078720,20.0,241.64,241.61,1.0]
[1738329079025,20.0,241.64,241.61,2.0]
[1738329079227,20.0,241.64,241.62,1.0]
[1738329080930,20.0,241.64,241.59,1.0]
[1738329081111,20.0,241.64,241.62,1.0]
[1738329082227,20.03,241.64,241.62,1.0]
[1738329082530,20.03,241.64,241.6,1.0]
[1738329084209,20.03,241.64,241.59,1.0]
[1738329084411,20.03,241.64,241.58,0.063]
[1738329085132,1.6005,241.63,241.58,0.063]
[1738329085627,20.0,241.59,241.58,0.063]
[1738329087825,33.41184853,241.59,241.51,0.063]
[1738329088022,20.0,241.55,241.51,0.063]
[1738329089732,21.04141685,241.55,241.51,0.063]
[1738329090134,21.04141685,241.55,241.51,1.063]
[1738329090342,21.04141685,241.55,241.52,1.0]
[1738329091237,20.0,241.55,241.52,1.0]
[1738329091435,30.0,241.58,241.56,1.0]
[1738329092412,1.08177714,241.64,241.61,1.0]
[1738329092617,30.0,241.62,241.61,1.0]
[1738329093217,0.03,241.64,241.59,1.0]
[1738329093439,0.03,241.64,241.61,1.0]
[1738329093818,0.03,241.64,241.63,1.0]
[1738329097942,0.03,241.64,241.58,7.177]
[1738329098319,20.0,241.63,241.58,1.063]
[1738329099736,20.0,241.63,241.58,0.063]
[1738329100341,20.0,241.59,241.58,0.063]
[1738329101847,50.0,241.59,241.58,0.063]
[1738329103247,20.0,241.63,241.58,0.063]
[1738329104944,30.0,241.59,241.58,0.063]
[1738329108339,20.0,241.56,241.51,0.063]
[1738329108936,20.0,241.52,241.51,0.063]
[1738329109432,21.06126211,241.52,241.51,0.063]
[1738329109635,20.0,241.52,241.51,1.063]
[1738329110056,21.01402584,241.52,241.51,1.063]
[1738329110250,21.01402584,241.52,241.51,0.063]
[1738329110449,20.0,241.52,241.51,1.063]
[1738329111161,20.0,241.52,241.51,2.063]
[1738329111339,37.929216,241.76,241.54,1.0]
[1738329111340,13.41184853,241.65,241.54,1.0]
[1738329111542,13.41184853,241.63,241.57,1.0]
[1738329111752,30.0,241.58,241.57,1.0]
[1738329112854,13.41184853,241.63,241.55,2.0]
[1738329113062,20.0,241.6,241.55,2.0]
[1738329113644,20.0,241.6,241.55,1.0]
[1738329115065,20.0,241.56,241.53,1.0]
[1738329115764,20.0,241.56,241.51,1.063]
[1738329116141,20.0,241.56,241.54,1.0]
[1738329119543,20.0,241.56,241.54,1.063]
[1738329120367,0.03,241.59,241.54,1.063]
[1738329120588,1.06563286,241.59,241.57,1.0]
[1738329120772,0.03,241.59,241.57,1.0]
[1738329121262,0.03,241.59,241.54,0.063]
[1738329121458,20.0,241.56,241.54,0.063]
[1738329122050,20.0,241.56,241.54,1.063]
[1738329122777,0.03,241.59,241.54,0.063]
[1738329123755,20.03,241.59,241.54,0.063]
[1738329124275,20.0,241.55,241.54,0.063]
[1738329124854,63.41184853,241.55,241.54,0.063]
[1738329125054,63.41184853,241.55,241.51,0.063]
[1738329126056,13.41184853,241.54,241.51,0.063]
[1738329126251,20.0,241.52,241.51,0.063]
[1738329128067,20.0,241.52,241.37,12.35605064]
[1738329128068,33.41184853,241.51,241.37,12.35605064]
[1738329128666,33.41184853,241.51,241.36,0.063]
[1738329129673,33.41184853,241.51,241.37,12.35605064]
[1738329131274,34.43298253,241.51,241.37,12.35605064]
[1738329131569,34.43298253,241.51,241.44,0.063]
[1738329133367,20.0,241.47,241.44,0.063]
[1738329134069,30.0,241.5,241.44,12.41905064]
[1738329134281,0.03,241.58,241.48,12.35605064]
[1738329134672,0.03,241.58,241.47,6.1547]
[1738329135363,0.03,241.58,241.48,12.35605064]
[1738329136276,0.03,241.58,241.5,12.35605064]
[1738329136576,0.03,241.58,241.48,12.35605064]
[1738329136775,0.03,241.58,241.47,6.77570884]
[1738329137074,0.03,241.58,241.48,12.35605064]
[1738329137455,0.03,241.58,241.47,6.1547]
[1738329138056,20.0,241.55,241.47,6.1547]
[1738329138859,20.0,241.55,241.44,0.063]
[1738329139085,20.0,241.51,241.44,0.063]
[1738329140976,21.05158639,241.51,241.44,0.063]
[1738329142679,20.0,241.47,241.44,0.063]
[1738329150882,13.41184853,241.46,241.44,0.063]
[1738329152585,20.0,241.48,241.44,0.063]
[1738329153386,20.0,241.47,241.44,0.063]
[1738329159379,0.03,241.51,241.44,0.063]
[1738329159587,0.03,241.51,241.45,6.5701]
[1738329165089,0.03,241.51,241.45,18.93345466]
[1738329165293,0.03,241.51,241.46,0.62106045]
[1738329165601,0.03,241.51,241.46,13.41184853]
[1738329166607,0.03,241.51,241.45,6.5701]
[1738329169205,0.03,241.51,241.45,18.93345466]
[1738329169511,0.03,241.51,241.45,6.5701]
[1738329170004,0.03,241.51,241.48,12.36335466]
[1738329170205,0.03,241.51,241.49,12.36335466]
[1738329170394,0.03,241.51,241.5,0.62090559]
[1738329171596,0.03,241.51,241.5,12.36335466]
[1738329171900,0.03,241.51,241.5,25.77520319]
[1738329172890,0.03,241.51,241.5,25.86680156]
[1738329173092,2.11452492,241.64,241.63,0.15832]
[1738329173426,32.11452492,241.64,241.63,0.15832]
[1738329176310,30.03,241.64,241.63,0.15832]
[1738329176692,0.03,241.64,241.63,0.15832]
[1738329180326,0.03,241.64,241.54,6.1394]
[1738329181523,20.0,241.6,241.46,21.26464853]
[1738329183625,20.0,241.56,241.46,21.26464853]
[1738329184315,30.0,241.59,241.5,13.41184853]
[1738329184721,0.03,241.64,241.5,13.41184853]
[1738329185114,0.03,241.64,241.52,13.41184853]
[1738329185316,0.03,241.64,241.54,13.41184853]
[1738329192733,0.03,241.64,241.53,6.2347]
[1738329193807,0.03,241.64,241.47,33.41184853]
[1738329194113,20.0,241.61,241.48,6.2967]
[1738329194617,20.0,241.61,241.46,0.063]
[1738329195140,20.0,241.57,241.46,0.063]
[1738329196029,20.0,241.52,241.46,0.063]
[1738329196237,30.0,241.55,241.46,0.063]
[1738329197014,20.0,241.59,241.46,0.063]
[1738329197628,1.6002,241.62,241.46,13.47484853]
[1738329197836,1.6002,241.62,241.48,13.41184853]
[1738329198634,0.03,241.64,241.48,12.34564127]
[1738329198921,0.03,241.64,241.47,25.7574898]
[1738329199931,0.03,241.64,241.48,12.34564127]
[1738329200239,0.03,241.64,241.5,13.41184853]
[1738329200937,0.03,241.64,241.48,12.34564127]
[1738329201315,0.03,241.64,241.48,12.96652791]
[1738329201737,0.03,241.64,241.49,13.41184853]
[1738329202745,0.03,241.64,241.48,13.41184853]
[1738329203241,0.03,241.64,241.47,13.41184853]
[1738329203445,0.03,241.64,241.47,25.7574898]
[1738329203619,0.03,241.64,241.47,13.41184853]
[1738329205861,0.03,241.64,241.48,12.34564127]
[1738329207043,0.03,241.64,241.5,13.41184853]
[1738329210963,0.03,241.64,241.46,8.58822004]
[1738329211167,0.03,241.64,241.47,13.41184853]
[1738329211367,1.5658,241.63,241.46,0.063]
[1738329214253,1.5658,241.63,241.46,13.47484853]
[1738329215542,1.5658,241.63,241.48,13.41184853]
[1738329216551,1.5958,241.63,241.48,13.41184853]
[1738329217454,1.5958,241.63,241.46,13.47484853]
[1738329221067,1.5958,241.63,241.49,7.90428854]
[1738329221239,1.5958,241.63,241.52,13.41184853]
[1738329221437,1.5958,241.63,241.52,14.03269687]
[1738329221734,1.5958,241.63,241.52,22.144008]
[1738329221946,1.5958,241.63,241.52,21.93698541]
[1738329222141,0.03,241.63,241.58,8.15526854]
[1738329222342,0.03,241.63,241.6,13.41184853]
[1738329222550,0.03,241.63,241.59,13.41184853]
[1738329223234,0.03,241.63,241.61,13.41184853]
[1738329223435,0.03,241.63,241.62,14.0324816]
[1738329224145,0.03,241.63,241.62,13.41184853]
[1738329228267,0.03,241.63,241.62,14.03242171]
[1738329228741,0.03,241.63,241.62,26.37631743]
[1738329228943,0.03,241.63,241.62,26.62729743]
[1738329229441,0.03,241.63,241.62,33.12798743]
[1738329230263,0.03,241.64,241.63,15.53733853]
[1738329230565,0.03,241.64,241.63,29.69531425]
[1738329230764,0.03,241.67,241.66,34.66282853]
[1738329230938,0.03,241.67,241.66,47.6271076]
[1738329231143,0.03,241.67,241.66,46.6271076]
[1738329231551,0.03,241.67,241.66,34.28321188]
[1738329231757,0.03,241.67,241.66,46.6271076]
[1738329231969,0.03,241.67,241.66,46.72765427]
[1738329232154,0.03,241.67,241.66,46.67371207]
[1738329232656,0.03,241.67,241.66,46.6271076]
[1738329233650,0.03,241.67,241.66,34.03223188]
[1738329233863,0.03,241.67,241.66,13.41184853]
[1738329235177,0.03,241.67,241.59,26.00672425]
[1738329235376,0.03,241.67,241.61,13.41184853]
[1738329235757,0.03,241.67,241.6,13.41184853]
[1738329236157,0.03,241.67,241.59,13.66282853]
[1738329236757,0.03,241.67,241.6,12.96448933]
[1738329237274,0.03,241.67,241.6,0.62059361]
[1738329237863,0.03,241.67,241.59,26.00672425]
[1738329238055,0.03,241.67,241.59,13.41184853]
[1738329238455,0.03,241.67,241.59,19.78514572]
[1738329239577,0.03,241.67,241.62,0.063]
[1738329245573,0.03,241.67,241.63,13.41184853]
[1738329246052,0.03,241.67,241.65,13.41184853]
[1738329248261,0.03,241.67,241.66,14.03234157]
[1738329249882,0.03,241.67,241.66,14.40881157]
[1738329250280,0.03,241.67,241.66,15.40881157]
[1738329251558,0.03,241.67,241.66,14.40881157]
[1738329252278,0.03,241.67,241.66,15.40881157]
[1738329253081,0.03,241.67,241.66,14.40881157]
[1738329253385,0.03,241.67,241.66,14.15783157]
[1738329254479,0.03,241.67,241.66,14.40881157]
[1738329254671,0.03,241.67,241.66,15.40881157]
[1738329256187,0.03,241.67,241.66,14.40881157]
[1738329257463,0.03,241.67,241.66,26.75270729]
[1738329258585,0.03,241.67,241.66,22.2984037]
[1738329259867,0.03,241.67,241.66,22.0474237]
[1738329261576,0.03,241.7,241.67,13.53733853]
[1738329261779,0.03,241.7,241.69,13.41184853]
[1738329262785,0.03,241.7,241.69,21.30144066]
[1738329262988,0.03,241.7,241.69,14.03220754]
[1738329264190,0.03,241.7,241.64,14.03231048]
[1738329266579,0.03,241.7,241.65,0.11126172]
[1738329266780,0.03,241.7,241.65,0.05170078]
[1738329266980,0.03,241.7,241.64,14.03231048]
[1738329268294,0.03,241.7,241.64,13.41184853]
[1738329268477,0.03,241.7,241.62,0.063]
[1738329273001,1.5189,241.69,241.62,0.063]
[1738329273576,6.6337,241.68,241.62,0.063]
[1738329274888,30.0,241.67,241.62,0.063]
[1738329275279,1.6651,241.66,241.62,0.063]
[1738329276602,20.0,241.65,241.62,0.063]
[1738329287713,1.5687,241.6,241.46,0.063]
[1738329287886,20.0,241.56,241.46,0.063]
[1738329288902,20.0,241.52,241.46,0.063]
[1738329289106,21.05948532,241.52,241.46,0.063]
[1738329290415,1.6285,241.51,241.46,0.063]
[1738329291585,21.6285,241.51,241.46,0.063]
[1738329291805,20.0,241.47,241.46,0.063]
[1738329294207,50.0,241.47,241.46,0.063]
[1738329294905,50.0,241.47,241.39,0.063]
[1738329295300,30.0,241.46,241.39,0.063]
[1738329297512,20.0,241.43,241.39,0.063]